Workbook

Sheet Kapitalbedarf
A1: Kapitalbedarfsplan
A2: Vorlage – Investitionen, laufende Kosten, Einnahmen und Puffer
A4: Stammdaten | F4: So benutzt du die Vorlage | K4: Puffer / Reserve
A5: Unternehmen/Projekt | C5: Beispiel GmbH (E-Commerce) | F5: 1) Einmalige Kosten eintragen. 2) Laufende Kosten und Einnahmen pflegen. 3) Puffer wählen. 4) Rechts den maximalen Kapitalbedarf ablesen. | K5: Methode | M5: Fixbetrag
A6: Planungsstart (Monat) | C6: 2026-03-01 | K6: Wert (€, % oder Monate) | M6: 5000.00000 €
A7: Planungsmonate | C7: 12 | K7: Berechneter Puffer (€) | M7: =IF($M$5="Fixbetrag",$M$6,IF($M$5="% von Gesamtkosten",$M$6*($F$26+SUM($M$13:$M$36)),IF($M$5="Monate laufende Kosten",$M$6*AVERAGE($M$13:$M$36),0))) -> 5000.00000 €
A8: Standard MwSt | C8: 19%
A9: Währung | C9: EUR
A11: Einmalige Investitionen & Gründungskosten | K11: Monatsübersicht
A12: Kategorie | B12: Posten | C12: Netto (€) | D12: MwSt (%) | E12: MwSt (€) | F12: Brutto (€) | G12: Zahlungsmonat | H12: Finanzierung | I12: Notiz | J12: # | K12: Monat | L12: Einmalig (€) | M12: Laufend (€) | N12: Einnahmen (€) | O12: Netto Cashflow (€) | P12: Kumuliert (€) | Q12: Defizit (€)
A13: Gründungskosten | B13: Notar & Handelsregister | C13: 1200.00000 € | D13: 19% | E13: =IF(C13="",0,C13*IF(D13="",$C$8,D13)) -> 228.00000 € | F13: =IF(C13="",0,C13+E13) -> 1428.00000 € | G13: 0 | H13: Eigenkapital | J13: 1 | K13: =IF($J13<=$C$7,EDATE($C$6,$J13-1),"") -> 2026-03-01 | L13: =IF($J13>$C$7,0,SUMIFS($F$13:$F$25,$G$13:$G$25,$J13)+IF($J13=1,SUMIFS($F$13:$F$25,$G$13:$G$25,0),0)) -> 21400.50000 € | M13: =IF($J13>$C$7,0,SUMPRODUCT(($J13>=($G$30:$G$44+0))*($J13<=($H$30:$H$44+0))*($F$30:$F$44+0))) -> 2329.32000 € | N13: =IF($J13>$C$7,0,SUMPRODUCT(($J13>=($D$49:$D$59+0))*($J13<=($E$49:$E$59+0))*($C$49:$C$59+0))) -> 2000.00000 € | O13: =IF($J13>$C$7,0,N13-L13-M13) -> (21729.82000 €) | P13: =IF($J13>$C$7,0,IF($J13=1,O13,P12+O13)) -> (21729.82000 €) | Q13: =IF($J13>$C$7,0,MIN(0,P13)) -> (21729.82000 €)
A14: Gründungskosten | B14: Gewerbeanmeldung | C14: 40.00000 € | D14: 0% | E14: 0 | F14: 40.00000 € | G14: 0 | H14: Eigenkapital | J14: 2 | K14: 2026-04-01 | L14: 0 | M14: 2849.32000 € | N14: 2800.00000 € | O14: (49.32000 €) | P14: (21779.14000 €) | Q14: (21779.14000 €)
A15: Investitionen | B15: Laptop + Zubehör | C15: 1800.00000 € | D15: 19% | E15: 342.00000 € | F15: 2142.00000 € | G15: 0 | H15: Eigenkapital | J15: 3 | K15: 2026-05-01 | L15: 0 | M15: 2849.32000 € | N15: 2800.00000 € | O15: (49.32000 €) | P15: (21828.46000 €) | Q15: (21828.46000 €)
A16: Software | B16: Shop-Setup & Theme | C16: 900.00000 € | D16: 19% | E16: 171.00000 € | F16: 1071.00000 € | G16: 1 | H16: Eigenkapital | J16: 4 | K16: 2026-06-01 | L16: 0 | M16: 2849.32000 € | N16: 4800.00000 € | O16: 1950.68000 € | P16: (19877.78000 €) | Q16: (19877.78000 €)
A17: Marketing | B17: Fotos / Branding | C17: 650.00000 € | D17: 19% | E17: 123.50000 € | F17: 773.50000 € | G17: 1 | H17: Eigenkapital | J17: 5 | K17: 2026-07-01 | L17: 0 | M17: 2849.32000 € | N17: 4800.00000 € | O17: 1950.68000 € | P17: (17927.10000 €) | Q17: (17927.10000 €)
A18: Ausstattung | B18: Regale & Verpackungstisch | C18: 1100.00000 € | D18: 19% | E18: 209.00000 € | F18: 1309.00000 € | G18: 1 | H18: Darlehen | J18: 6 | K18: 2026-08-01 | L18: 0 | M18: 2849.32000 € | N18: 4800.00000 € | O18: 1950.68000 € | P18: (15976.42000 €) | Q18: (15976.42000 €)
A19: Investitionen | B19: Erstbestand Ware | C19: 12000.00000 € | D19: 19% | E19: 2280.00000 € | F19: 14280.00000 € | G19: 0 | H19: Darlehen | J19: 7 | K19: 2026-09-01 | L19: 0 | M19: 2849.32000 € | N19: 7300.00000 € | O19: 4450.68000 € | P19: (11525.74000 €) | Q19: (11525.74000 €)
A20: Sonstiges | B20: Puffer kleine Anschaffungen | C20: 300.00000 € | D20: 19% | E20: 57.00000 € | F20: 357.00000 € | G20: 0 | H20: Eigenkapital | J20: 8 | K20: 2026-10-01 | L20: 0 | M20: 2849.32000 € | N20: 7300.00000 € | O20: 4450.68000 € | P20: (7075.06000 €) | Q20: (7075.06000 €)
E21: 0 | F21: 0 | J21: 9 | K21: 2026-11-01 | L21: 0 | M21: 2849.32000 € | N21: 7300.00000 € | O21: 4450.68000 € | P21: (2624.38000 €) | Q21: (2624.38000 €)
E22: 0 | F22: 0 | J22: 10 | K22: 2026-12-01 | L22: 0 | M22: 2849.32000 € | N22: 7300.00000 € | O22: 4450.68000 € | P22: 1826.30000 € | Q22: 0
E23: 0 | F23: 0 | J23: 11 | K23: 2027-01-01 | L23: 0 | M23: 2849.32000 € | N23: 7300.00000 € | O23: 4450.68000 € | P23: 6276.98000 € | Q23: 0
E24: 0 | F24: 0 | J24: 12 | K24: 2027-02-01 | L24: 0 | M24: 2849.32000 € | N24: 7300.00000 € | O24: 4450.68000 € | P24: 10727.66000 € | Q24: 0
E25: 0 | F25: 0 | J25: 13 | L25: 0 | M25: 0 | N25: 0 | O25: 0 | P25: 0 | Q25: 0
A26: Summe (Brutto) | F26: =SUM(F13:F25) -> 21400.50000 € | J26: 14 | L26: 0 | M26: 0 | N26: 0 | O26: 0 | P26: 0 | Q26: 0
J27: 15 | L27: 0 | M27: 0 | N27: 0 | O27: 0 | P27: 0 | Q27: 0
A28: Laufende Kosten (monatlich) | J28: 16 | L28: 0 | M28: 0 | N28: 0 | O28: 0 | P28: 0 | Q28: 0
A29: Kategorie | B29: Posten | C29: Netto/Monat (€) | D29: MwSt (%) | E29: MwSt/Monat (€) | F29: Brutto/Monat (€) | G29: Startmonat | H29: Endmonat | I29: Notiz | J29: 17 | L29: 0 | M29: 0 | N29: 0 | O29: 0 | P29: 0 | Q29: 0
A30: Miete | B30: Lager/Office Miete | C30: 900.00000 € | D30: 19% | E30: =IF(C30="",0,C30*IF(D30="",$C$8,D30)) -> 171.00000 € | F30: =IF(C30="",0,C30+E30) -> 1071.00000 € | G30: 1 | H30: 12 | J30: 18 | L30: 0 | M30: 0 | N30: 0 | O30: 0 | P30: 0 | Q30: 0
A31: Personal | B31: Aushilfe (Minijob) | C31: 520.00000 € | D31: 0% | E31: 0 | F31: 520.00000 € | G31: 2 | H31: 12 | I31: inkl. Nebenkosten pauschal | J31: 19 | L31: 0 | M31: 0 | N31: 0 | O31: 0 | P31: 0 | Q31: 0
A32: IT | B32: Shop-Software (SaaS) | C32: 79.00000 € | D32: 19% | E32: 15.01000 € | F32: 94.01000 € | G32: 1 | H32: 12 | J32: 20 | L32: 0 | M32: 0 | N32: 0 | O32: 0 | P32: 0 | Q32: 0
A33: Marketing | B33: Ads (Google/Meta) | C33: 600.00000 € | D33: 19% | E33: 114.00000 € | F33: 714.00000 € | G33: 1 | H33: 12 | J33: 21 | L33: 0 | M33: 0 | N33: 0 | O33: 0 | P33: 0 | Q33: 0
A34: Versicherung | B34: Betriebshaftpflicht | C34: 35.00000 € | D34: 0% | E34: 0 | F34: 35.00000 € | G34: 1 | H34: 12 | J34: 22 | L34: 0 | M34: 0 | N34: 0 | O34: 0 | P34: 0 | Q34: 0
A35: Material | B35: Verpackungsmaterial | C35: 120.00000 € | D35: 19% | E35: 22.80000 € | F35: 142.80000 € | G35: 1 | H35: 12 | J35: 23 | L35: 0 | M35: 0 | N35: 0 | O35: 0 | P35: 0 | Q35: 0
A36: Sonstiges | B36: Steuerberater | C36: 180.00000 € | D36: 19% | E36: 34.20000 € | F36: 214.20000 € | G36: 1 | H36: 12 | J36: 24 | L36: 0 | M36: 0 | N36: 0 | O36: 0 | P36: 0 | Q36: 0
A37: IT | B37: Telefon/Internet | C37: 49.00000 € | D37: 19% | E37: 9.31000 € | F37: 58.31000 € | G37: 1 | H37: 12
E38: 0 | F38: 0 | K38: Kapitalbedarf – Überblick
E39: 0 | F39: 0 | K39: Summe Einmalig (Brutto) | M39: =$F$26 -> 21400.50000 €
E40: 0 | F40: 0 | K40: Summe Laufend (Brutto) | M40: =SUM($M$13:$M$36) -> 33671.84000 €
E41: 0 | F41: 0 | K41: Max. kumuliertes Defizit | M41: =ABS(MIN($P$13:$P$36)) -> 21828.46000 €
E42: 0 | F42: 0 | K42: Kapitalbedarf inkl. Puffer | M42: =ABS(MIN($P$13:$P$36))+$M$7 -> 26828.46000 €
E43: 0 | F43: 0
E44: 0 | F44: 0
A45: Summe (Durchschnitt/Monat, Brutto) | F45: =SUM(F30:F44) -> 2849.32000 €
A47: Einnahmen (monatlich, optional)
A48: Kategorie | B48: Quelle | C48: Netto/Monat (€) | D48: Startmonat | E48: Endmonat | F48: Hinweis
A49: Umsatz | B49: Online-Shop (Launch) | C49: 2000.00000 € | D49: 1 | E49: 3 | F49: konservativer Start
A50: Umsatz | B50: Online-Shop (Wachstum) | C50: 4000.00000 € | D50: 4 | E50: 6
A51: Umsatz | B51: Online-Shop (stabil) | C51: 6500.00000 € | D51: 7 | E51: 12
A52: Sonstiges | B52: Marktplatz-Verkäufe | C52: 800.00000 € | D52: 2 | E52: 12
A60: Summe (Netto/Monat, wenn aktiv) | C60: =SUM(C49:C59) -> 13300.00000 €
A62: Finanzierung (Abgleich)
A63: Quelle | B63: Typ | C63: Betrag (€) | D63: Auszahlungsmonat | E63: Kommentar
A64: Eigenkapital Gründer | B64: Eigenkapital | C64: 15000.00000 € | D64: 0 | E64: Einzahlung zum Start | G64: Kennzahlen
A65: Bankdarlehen | B65: Darlehen | C65: 12000.00000 € | D65: 0 | E65: Auszahlung bei Gründung | G65: Summe Finanzierung (€) | H65: =SUM(C64:C74) -> 30000.00000 €
A66: Zuschuss Digitalisierung | B66: Zuschuss | C66: 3000.00000 € | D66: 2 | E66: voraussichtlich Monat 2 | G66: Kapitalbedarf inkl. Puffer (€) | H66: =M42 -> 26828.46000 €
G67: Deckung? | H67: =IF(H65>=H66,"OK","FEHLT") -> OK
